lending/lending_fUSD_20250122
["ID","MTS","AMOUNT","RATE_DAILY","PERIOD"]
[349983087,1737549032420,-500.0,0.00019979,2]
[349983088,1737549032429,-500.0,0.00019979,2]
[349983089,1737549032439,-530.02,0.00019979,2]
[349983090,1737549032448,-500.0,0.00019979,2]
[349983091,1737549032457,-500.0,0.00019979,2]
[349983092,1737549032467,-500.0,0.00019979,2]
[349983093,1737549032476,-500.0,0.00019979,2]
[349983094,1737549032485,-622.68,0.00019979,2]
[349983095,1737549032495,-500.0,0.00019979,2]
[349983096,1737549032504,-500.0,0.00019979,2]
[349983097,1737549032513,-500.0,0.00019979,2]
[349983098,1737549032522,-500.0,0.00019979,2]
[349983099,1737549032532,-500.0,0.00019979,2]
[349983101,1737549032541,-500.0,0.00019979,2]
[349983103,1737549032550,-465.621511,0.00019979,2]
[349983105,1737549032559,-500.0,0.00019979,2]
[349983107,1737549032568,-500.0,0.00019979,2]
[349983108,1737549032577,-619.56248171,0.00019979,2]
[349983109,1737549032586,-500.0,0.00019979,2]
[349983110,1737549032596,-500.0,0.00019979,2]
[349983111,1737549032606,-500.0,0.00019979,2]
[349983112,1737549032615,-500.0,0.00019979,2]
[349983113,1737549032625,-661.91,0.00019979,2]
[349983114,1737549032634,-759.510306,0.00019979,2]
[349983115,1737549032644,-500.0,0.00019979,2]
[349983116,1737549032653,-500.0,0.00019979,2]
[349983117,1737549032662,-156.363218,0.00019979,2]
[349983118,1737549032671,-777.07,0.00019979,2]
[349983119,1737549032682,-160.561758,0.00019979,2]
[349983120,1737549032691,-500.0,0.00019979,2]
[349983122,1737549032701,-500.0,0.00019979,2]
[349983125,1737549032710,-500.0,0.00019979,2]
[349983128,1737549032719,-346.57491651,0.00019979,2]
[349983130,1737549032728,-500.0,0.00019979,2]
[349983132,1737549032737,-500.0,0.00019979,2]
[349983134,1737549032746,-500.0,0.00019979,2]
[349983136,1737549032755,-682.69,0.00019979,2]
[349983138,1737549032764,-715.54,0.00019979,2]
[349983139,1737549032773,-508.25959491,0.00019979,2]
[349983141,1737549032782,-543.77,0.00019979,2]
[349983143,1737549032792,-500.0,0.00019979,2]
[349983145,1737549032801,-500.0,0.00019979,2]
[349983147,1737549032810,-500.0,0.00019979,2]
[349983149,1737549032819,-569.24,0.00019979,2]
[349983151,1737549032830,-500.0,0.00019979,2]
[349983153,1737549032839,-500.0,0.00019979,2]
[349983155,1737549032848,-500.0,0.00019979,2]
[349983157,1737549032857,-500.0,0.00019979,2]
[349983159,1737549032866,-500.0,0.00019979,2]
[349983161,1737549032877,-155.850208,0.00019979,2]
[349983162,1737549032886,-500.0,0.00019979,2]
[349983163,1737549032896,-500.0,0.00019979,2]
[349983164,1737549032905,-500.0,0.00019979,2]
[349983165,1737549032915,-500.0,0.00019979,2]
[349983166,1737549032925,-500.0,0.00019979,2]
[349983167,1737549032934,-189.997486,0.00019979,2]
[349983168,1737549032943,-500.0,0.00019979,2]
[349983169,1737549032953,-500.0,0.00019979,2]
[349983170,1737549032963,-500.0,0.00019979,2]
[349983171,1737549032972,-500.0,0.00019979,2]
[349983172,1737549032982,-501.53048266,0.00019979,2]
[349983173,1737549032991,-500.0,0.00019979,2]
[349983174,1737549033000,-500.0,0.00019979,2]
[349983175,1737549033010,-500.0,0.00019979,2]
[349983176,1737549033019,-500.0,0.00019979,2]
[349983177,1737549033029,-500.0,0.00019979,2]
[349983178,1737549033039,-500.0,0.00019979,2]
[349983179,1737549033048,-1145.18,0.00019979,2]
[349983180,1737549033058,-500.0,0.00019979,2]
[349983181,1737549033071,-500.0,0.00019979,2]
[349983182,1737549033081,-500.0,0.00019979,2]
[349983183,1737549033091,-500.0,0.00019979,2]
[349983184,1737549033103,-500.0,0.00019979,2]
[349983185,1737549033112,-580.08,0.00019979,2]
[349983186,1737549033121,-1034.13,0.00019979,2]
[349983187,1737549033131,-1918.8,0.00019979,2]
[349983188,1737549033140,-1510.81,0.00019979,2]
[349983189,1737549033154,-1016.66,0.00019979,2]
[349983190,1737549033164,-971.81,0.00019979,2]
[349983191,1737549033174,-963.7,0.00019979,2]
[349983192,1737549033184,-500.0,0.00019979,2]
[349983193,1737549033195,-1351.87,0.00019979,2]
[349983194,1737549033209,-500.0,0.00019979,2]
[349983195,1737549033227,-519.8,0.00019979,2]
[349983196,1737549033237,-500.0,0.00019979,2]
[349983197,1737549033247,-726.58,0.00019979,2]
[349983198,1737549033257,-756.68,0.00019979,2]
[349983199,1737549033266,-500.0,0.00019979,2]
[349983200,1737549033275,-1361.76,0.00019979,2]
[349983201,1737549033285,-1110.66,0.00019979,2]
[349983202,1737549033293,-652.9,0.00019979,2]
[349983203,1737549033303,-769.05,0.00019979,2]
[349983204,1737549033313,-555.35,0.00019979,2]
[349983205,1737549033322,-1066.49,0.00019979,2]
[349983206,1737549033331,-795.04,0.00019979,2]
[349983207,1737549033341,-2707.27,0.00019979,2]
[349983208,1737549033353,-500.0,0.00019979,2]
[349983209,1737549033362,-500.0,0.00019979,2]
[349983210,1737549033372,-164.121137,0.00019979,2]
[349983211,1737549033382,-1689.92,0.00019979,2]
[349983212,1737549033391,-1448.38,0.00019979,2]
[349983213,1737549033401,-500.0,0.00019979,2]
[349983214,1737549033411,-889.69,0.00019979,2]
[349983215,1737549033421,-682.43,0.00019979,2]
[349983216,1737549033430,-977.14,0.00019979,2]
[349983217,1737549033440,-500.0,0.00019979,2]
[349983218,1737549033449,-500.0,0.00019979,2]
[349983219,1737549033459,-775.54,0.00019979,2]
[349983220,1737549033468,-574.34,0.00019979,2]
[349983221,1737549033478,-1681.08,0.00019979,2]
[349983222,1737549033491,-550.22,0.00019979,2]
[349983223,1737549033509,-1831.25,0.00019979,2]
[349983224,1737549033519,-1003.72,0.00019979,2]
[349983225,1737549033529,-500.0,0.00019979,2]
[349983226,1737549033539,-1016.3,0.00019979,2]
[349983227,1737549033549,-1242.63,0.00019979,2]
[349983228,1737549033559,-637.13,0.00019979,2]
[349983229,1737549033569,-895.54,0.00019979,2]
[349983230,1737549033579,-500.0,0.00019979,2]
[349983231,1737549033588,-500.0,0.00019979,2]
[349983232,1737549033598,-500.0,0.00019979,2]
[349983233,1737549033609,-4356.71,0.00019979,2]
[349983234,1737549033618,-2686.25,0.00019979,2]
[349983235,1737549033628,-2195.16,0.00019979,2]
[349983236,1737549033637,-500.0,0.00019979,2]
[349983237,1737549033647,-500.0,0.00019979,2]
[349983238,1737549033657,-919.29,0.00019979,2]
[349983239,1737549033666,-1514.78,0.00019979,2]
[349983240,1737549033675,-500.0,0.00019979,2]
[349983241,1737549033685,-2829.02,0.00019979,2]
[349983242,1737549033694,-500.0,0.00019979,2]
[349983243,1737549033704,-500.0,0.00019979,2]
[349983244,1737549033714,-840.97,0.00019979,2]
[349983245,1737549033723,-500.0,0.00019979,2]
[349983246,1737549033733,-500.0,0.00019979,2]
[349983247,1737549033743,-500.0,0.00019979,2]
[349983248,1737549033752,-500.0,0.00019979,2]
[349983249,1737549033761,-1467.47,0.00019979,2]
[349983250,1737549033771,-974.6,0.00019979,2]
[349983251,1737549033781,-1423.79,0.00019979,2]
[349983252,1737549033790,-500.0,0.00019979,2]
[349983253,1737549033800,-1034.24,0.00019979,2]
[349983254,1737549033809,-500.0,0.00019979,2]
[349983255,1737549033819,-1012.59,0.00019979,2]
[349983256,1737549033828,-918.95,0.00019979,2]
[349983257,1737549033837,-500.0,0.00019979,2]
[349983258,1737549033847,-880.71,0.00019979,2]
[349983259,1737549033857,-500.0,0.00019979,2]
[349983260,1737549033867,-500.0,0.00019979,2]
[349983261,1737549033877,-556.06,0.00019979,2]
[349983262,1737549033886,-3001.3,0.00019979,2]
[349983263,1737549033896,-500.0,0.00019979,2]
[349983264,1737549033906,-500.0,0.00019979,2]
[349983265,1737549033916,-500.0,0.00019979,2]
[349983266,1737549033926,-1480.58,0.00019979,2]
[349983267,1737549033935,-110.21121246,0.00019979,2]
[349983268,1737549033950,-332.0,0.00019979,2]
[349983269,1737549033966,-139.31878754,0.00019979,2]
[349983270,1737549033975,-500.0,0.00019979,2]
[349983271,1737549033985,-500.0,0.00019979,2]
[349983272,1737549033995,-511.76122295,0.00019979,2]
[349983273,1737549034026,-577.24877705,0.00019979,2]
[349983274,1737549034036,-500.0,0.00019979,2]
[349983275,1737549034047,-2620.44,0.00019979,2]
[349983276,1737549034057,-1211.77,0.00019979,2]
[349983277,1737549034070,-500.0,0.00019979,2]
[349983278,1737549034079,-802.29,0.00019979,2]
[349983279,1737549034089,-500.0,0.00019979,2]
[349983280,1737549034098,-500.0,0.00019979,2]
[349983281,1737549034110,-500.0,0.00019979,2]
[349983282,1737549034119,-500.0,0.00019979,2]
[349983283,1737549034129,-500.0,0.00019979,2]
[349983284,1737549034333,-500.0,0.00019979,2]
[349983285,1737549034343,-556.36,0.00019979,2]
[349983286,1737549034353,-500.0,0.00019979,2]
[349983287,1737549034364,-500.0,0.00019979,2]
[349983288,1737549034373,-1228.47,0.00019979,2]
[349983289,1737549034382,-500.0,0.00019979,2]
[349983290,1737549034392,-716.78,0.00019979,2]
[349983291,1737549034401,-500.0,0.00019979,2]
[349983292,1737549034410,-1543.85,0.00019979,2]
[349983293,1737549034419,-500.0,0.00019979,2]
[349983294,1737549034428,-500.0,0.00019979,2]
[349983295,1737549034437,-919.14,0.00019979,2]
[349983296,1737549034445,-2698.41,0.00019979,2]
[349983297,1737549034454,-406.86646,0.00019979,2]
[349983298,1737549034464,-500.0,0.00019979,2]
[349983299,1737549034473,-981.74,0.00019979,2]
[349983300,1737549034482,-112914.82206596,0.0001998,2]
[349983301,1737549034492,-500.0,0.0001998,2]
[349983302,1737549034501,-500.0,0.0001998,2]
[349983303,1737549034510,-500.0,0.0001998,2]
[349983304,1737549034520,-500.0,0.0001998,2]
[349983305,1737549034529,-500.0,0.0001998,2]
[349983306,1737549034538,-500.0,0.0001998,2]
[349983307,1737549034548,-500.0,0.0001998,2]
[349983308,1737549034557,-500.0,0.0001998,2]
[349983309,1737549034566,-500.0,0.0001998,2]
[349983310,1737549034577,-500.0,0.0001998,2]
[349983311,1737549034586,-500.0,0.0001998,2]
[349983312,1737549034596,-500.0,0.0001998,2]
[349983313,1737549034607,-500.0,0.0001998,2]
[349983314,1737549034616,-500.0,0.0001998,2]
[349983315,1737549034625,-500.0,0.0001998,2]
[349983316,1737549034634,-500.0,0.0001998,2]
[349983317,1737549034643,-500.0,0.0001998,2]
[349983318,1737549034653,-513.23315404,0.0001998,2]
[349983319,1737549034662,-500.0,0.0001998,2]
[349983320,1737549034671,-500.0,0.0001998,2]
[349983321,1737549034680,-604.82,0.0001998,2]
[349983322,1737549034690,-500.0,0.0001998,2]
[349983323,1737549034698,-500.0,0.0001998,2]
[349983324,1737549034708,-500.0,0.0001998,2]
[349983325,1737549034717,-548.89,0.0001998,2]
[349983326,1737549034725,-500.0,0.0001998,2]
[349983327,1737549034734,-500.0,0.0001998,2]
[349983328,1737549034744,-500.0,0.0001998,2]
[349983329,1737549034753,-500.0,0.0001998,2]
[349983330,1737549034762,-500.0,0.0001998,2]
[349983331,1737549034771,-500.0,0.0001998,2]
[349983332,1737549034780,-500.0,0.0001998,2]
[349983333,1737549034790,-261.702844,0.0001998,2]
[349983334,1737549034799,-500.0,0.0001998,2]
[349983335,1737549034808,-500.0,0.0001998,2]
[349983336,1737549034817,-500.0,0.0001998,2]
[349983337,1737549034826,-500.0,0.0001998,2]
[349983338,1737549034836,-500.0,0.0001998,2]
[349983339,1737549034845,-500.0,0.0001998,2]
[349983340,1737549034855,-500.0,0.0001998,2]
[349983341,1737549034864,-500.0,0.0001998,2]
[349983342,1737549034873,-500.0,0.0001998,2]
[349983343,1737549034882,-500.0,0.0001998,2]
[349983344,1737549034891,-500.0,0.0001998,2]
[349983345,1737549034901,-552.08,0.0001998,2]
[349983346,1737549034910,-614.82,0.0001998,2]
[349983347,1737549034919,-500.0,0.0001998,2]
[349983348,1737549034928,-500.0,0.0001998,2]
[349983349,1737549034938,-500.0,0.0001998,2]
[349983350,1737549034947,-500.0,0.0001998,2]
[349983351,1737549034956,-500.0,0.0001998,2]
[349983352,1737549034965,-543.85,0.0001998,2]
[349983353,1737549034975,-509.92850998,0.0001998,2]
[349983354,1737549034983,-500.0,0.0001998,2]
[349983355,1737549034993,-503.73708563,0.0001998,2]
[349983356,1737549035002,-500.0,0.0001998,2]
[349983357,1737549035011,-500.0,0.0001998,2]
[349983358,1737549035021,-616.84,0.0001998,2]
[349983359,1737549035030,-500.0,0.0001998,2]
[349983360,1737549035039,-500.0,0.0001998,2]
[349983361,1737549035048,-500.0,0.0001998,2]
[349983362,1737549035060,-500.0,0.0001998,2]
[349983363,1737549035072,-639.14,0.0001998,2]
[349983364,1737549035081,-500.0,0.0001998,2]
[349983365,1737549035091,-500.0,0.0001998,2]
[349983366,1737549035103,-613.53,0.0001998,2]
[349983367,1737549035112,-500.0,0.0001998,2]
[349983368,1737549035121,-500.0,0.0001998,2]
[349983369,1737549035131,-500.0,0.0001998,2]
[349983370,1737549035141,-500.0,0.0001998,2]
[349983371,1737549035151,-500.0,0.0001998,2]
[349983372,1737549035160,-500.0,0.0001998,2]
[349983373,1737549035169,-500.0,0.0001998,2]
[349983374,1737549035178,-500.0,0.0001998,2]
[349983375,1737549035187,-500.0,0.0001998,2]
[349983376,1737549035196,-500.0,0.0001998,2]
[349983377,1737549035205,-500.0,0.0001998,2]
[349983378,1737549035215,-500.0,0.0001998,2]
[349983379,1737549035225,-500.0,0.0001998,2]
[349983380,1737549035234,-500.0,0.0001998,2]
[349983381,1737549035243,-500.0,0.0001998,2]
[349983382,1737549035252,-511.51,0.0001998,2]
[349983383,1737549035262,-500.0,0.0001998,2]
[349983384,1737549035271,-500.0,0.0001998,2]
[349983385,1737549035281,-500.0,0.0001998,2]
[349983386,1737549035290,-500.0,0.0001998,2]
[349983387,1737549035300,-500.0,0.0001998,2]
[349983388,1737549035309,-594.47,0.0001998,2]
[349983389,1737549035318,-500.0,0.0001998,2]
[349983390,1737549035327,-500.0,0.0001998,2]
[349983391,1737549035336,-500.0,0.0001998,2]
[349983392,1737549035347,-534.03,0.0001998,2]
[349983393,1737549035356,-500.0,0.0001998,2]
[349983394,1737549035365,-690.93,0.0001998,2]
[349983395,1737549035375,-500.0,0.0001998,2]
[349983396,1737549035385,-500.0,0.0001998,2]
[349983397,1737549035395,-500.0,0.0001998,2]
[349983398,1737549035407,-500.0,0.0001998,2]
[349983399,1737549035416,-500.0,0.0001998,2]
[349983400,1737549035426,-749.51,0.0001998,2]
[349983401,1737549035436,-546.05,0.0001998,2]
[349983402,1737549035445,-741.19,0.0001998,2]
[349983403,1737549035454,-500.0,0.0001998,2]
[349983404,1737549035464,-600.68,0.0001998,2]
[349983405,1737549035473,-500.0,0.0001998,2]
[349983406,1737549035482,-500.0,0.0001998,2]
[349983407,1737549035492,-500.0,0.0001998,2]
[349983408,1737549035501,-500.0,0.0001998,2]
[349983409,1737549035510,-549.78,0.0001998,2]
[349983410,1737549035521,-500.0,0.0001998,2]
[349983411,1737549035531,-500.0,0.0001998,2]
[349983412,1737549035542,-500.0,0.0001998,2]
[349983413,1737549035551,-500.0,0.0001998,2]
[349983414,1737549035560,-500.0,0.0001998,2]
[349983415,1737549035570,-166.36,0.00019989,2]
[349983416,1737549035581,-166.36,0.00019989,2]
[349983417,1737549035590,-166.36,0.0001999,2]
[349983418,1737549035600,-99299.20136537,0.00019999,2]
[349983419,1737549035610,-22849.0,0.0002,4]
[349983420,1737549035619,-913.54250178,0.0002,2]
[349983421,1737549035628,-10494.0,0.0002,2]
[349983422,1737549035637,-2658.1773366,0.0002,2]
[349983423,1737549035647,-63524.74120722,0.0002,14]
[349983424,1737549035656,-2489.98994664,0.0002,4]
[349983425,1737549035666,-98463.74250549,0.0002,2]
[349983426,1737549035676,-2775.60957495,0.0002,7]
[349983427,1737549035687,-795.39868286,0.0002,7]
[349983428,1737549035697,-213.03368819,0.00020082,2]
[349983429,1737549035706,-445.02,0.00020082,2]
[349983430,1737549035717,-773.11,0.00020082,2]
[349983431,1737549035727,-1335.98476408,0.00020104,2]
[349983432,1737549035736,-333.39474199,0.00020104,2]
[349983433,1737549035745,-307.23134397,0.00020122,2]
[349983434,1737549035755,-500.0,0.00020153,2]
[349983435,1737549035764,-500.0,0.00020153,2]
[349983436,1737549035773,-500.0,0.00020153,2]
[349983437,1737549035783,-500.0,0.00020153,2]
[349983438,1737549035793,-500.0,0.00020153,2]
[349983439,1737549035802,-497.61469025,0.00020153,2]
[349983440,1737549035811,-502.6732026,0.00020153,2]
[349983441,1737549035822,-503.8988649,0.00020153,2]
[349983442,1737549035832,-500.0,0.00020153,2]
[349983443,1737549035841,-500.0,0.00020153,2]
[349983444,1737549035850,-500.0,0.00020153,2]
[349983445,1737549035861,-500.0,0.00020153,2]
[349983446,1737549035870,-500.0,0.00020153,2]
[349983447,1737549035879,-500.0,0.00020153,2]
[349983448,1737549035889,-500.0,0.00020153,2]
[349983449,1737549035898,-504.6277734,0.00020153,2]
[349983450,1737549035907,-500.0,0.00020153,2]
[349983451,1737549035916,-500.0,0.00020153,2]
[349983452,1737549035926,-500.0,0.00020153,2]
[349983453,1737549035935,-500.0,0.00020153,2]
[349983454,1737549035945,-500.28896415,0.00020153,2]
[349983455,1737549035954,-502.0110222,0.00020153,2]
[349983456,1737549035963,-500.87592362,0.00020153,2]
[349983457,1737549035972,-502.81777715,0.00020153,2]
[349983458,1737549035981,-500.0,0.00020153,2]
[349983459,1737549035990,-503.95630134,0.00020153,2]
[349983460,1737549035999,-500.0,0.00020153,2]
[349983461,1737549036008,-500.0,0.00020153,2]
[349983462,1737549036017,-500.0,0.00020153,2]
[349983463,1737549036027,-500.0,0.00020153,2]
[349983464,1737549036036,-500.0,0.00020153,2]
[349983465,1737549036045,-506.16033774,0.00020153,2]
[349983466,1737549036055,-500.0,0.00020153,2]
[349983467,1737549036067,-500.0,0.00020153,2]
[349983468,1737549036077,-500.0,0.00020153,2]
[349983469,1737549036086,-500.0,0.00020153,2]
[349983470,1737549036095,-500.0,0.00020153,2]
[349983471,1737549036106,-500.0,0.00020153,2]
[349983472,1737549036116,-500.0,0.00020153,2]
[349983473,1737549036126,-500.0,0.00020153,2]
[349983474,1737549036137,-500.0,0.00020153,2]
[349983475,1737549036146,-500.0,0.00020153,2]
[349983476,1737549036156,-500.0,0.00020153,2]
[349983477,1737549036166,-507.76843948,0.00020153,2]
[349983478,1737549036176,-500.0,0.00020153,2]
[349983479,1737549036185,-500.0,0.00020153,2]
[349983480,1737549036194,-168.54,0.00020153,2]
[349983481,1737549036203,-500.0,0.00020153,2]
[349983482,1737549036212,-500.0,0.00020153,2]
[349983483,1737549036222,-500.0,0.00020153,2]
[349983484,1737549036231,-500.0,0.00020253,2]
[349983485,1737549036241,-519.11401327,0.00020253,2]
[349983486,1737549036250,-514.42645228,0.00020253,2]
[349983487,1737549036260,-500.0,0.00020253,2]
[349983488,1737549036270,-500.0,0.00020253,2]
[349983489,1737549036280,-516.62,0.00020253,2]
[349983490,1737549036289,-500.0,0.00020253,2]
[349983491,1737549036299,-500.0,0.00020253,2]
[349983492,1737549036309,-564.75,0.00020253,2]
[349983493,1737549036318,-500.0,0.00020253,2]
[349983494,1737549036328,-530.02,0.00020253,2]
[349983495,1737549036337,-622.68,0.00020253,2]
[349983496,1737549036347,-500.0,0.00020253,2]
[349983497,1737549036357,-465.621511,0.00020253,2]
[349983498,1737549036366,-500.0,0.00020253,2]
[349983499,1737549036375,-500.0,0.00020253,2]
[349983500,1737549036384,-661.91,0.00020253,2]
[349983501,1737549036393,-759.510306,0.00020253,2]
[349983502,1737549036402,-500.0,0.00020253,2]
[349983503,1737549036411,-777.07,0.00020253,2]
[349983504,1737549036421,-500.0,0.00020253,2]
[349983505,1737549036430,-500.0,0.00020253,2]
[349983506,1737549036440,-500.0,0.00020253,2]
[349983507,1737549036450,-500.0,0.00020253,2]
[349983508,1737549036459,-500.0,0.00020253,2]
[349983509,1737549036468,-682.69,0.00020253,2]
[349983510,1737549036477,-90.79402266,0.00020253,2]
[349983511,1737549036684,-624.74597734,0.00020253,2]
[349983512,1737549036694,-284.66221017,0.00020253,2]
[349983513,1737549036793,-215.33778983,0.00020253,2]
[349983514,1737549036802,-569.24,0.00020253,2]
[349983515,1737549036812,-500.0,0.00020253,2]
[349983516,1737549036821,-500.0,0.00020253,2]
[349983517,1737549036831,-500.0,0.00020253,2]
[349983518,1737549036840,-350.42221017,0.00020253,2]
[349983519,1737549036852,-149.57778983,0.00020253,2]
[349983520,1737549036862,-196.05078145,0.00020253,2]
[349983523,1737549037941,-500.0,0.00019979,2]
[349983524,1737549037950,-303.94921855,0.00020253,2]
[349983525,1737549037960,-500.0,0.00020253,2]
[349983526,1737549037970,-500.0,0.00020253,2]
[349983527,1737549037979,-500.0,0.00020253,2]
[349983528,1737549037989,-500.0,0.00020253,2]
[349983529,1737549037999,-500.0,0.00020253,2]
[349983530,1737549038008,-500.0,0.00020253,2]
[349983531,1737549038018,-500.0,0.00020253,2]
[349983532,1737549038027,-500.0,0.00020253,2]
[349983533,1737549038036,-500.0,0.00020253,2]
[349983534,1737549038046,-580.08,0.00020253,2]
[349983535,1737549038056,-849.87651202,0.00020253,2]
[349983536,1737549038074,-184.25348798,0.00020253,2]
[349983537,1737549038084,-357.26288693,0.00020253,2]
[349983538,1737549038095,-250.64109937,0.00020253,2]
[349983539,1737549038649,-1310.8960137,0.00020253,2]
[349983540,1737549038658,-1510.81,0.00020253,2]
[349983541,1737549038669,-1016.66,0.00020253,2]
[349983542,1737549038679,-971.81,0.00020253,2]
[349983543,1737549038688,-500.0,0.00020253,2]
[349983544,1737549038697,-963.7,0.00020253,2]
[349983545,1737549038707,-1351.87,0.00020253,2]
[349983546,1737549038716,-500.0,0.00020253,2]
[349983547,1737549038725,-519.8,0.00020253,2]
[349983548,1737549038735,-726.58,0.00020253,2]
[349983549,1737549038744,-756.68,0.00020253,2]
[349983550,1737549038754,-500.0,0.00020253,2]
[349983551,1737549038763,-1361.76,0.00020253,2]
[349983552,1737549038774,-1110.66,0.00020253,2]
[349983553,1737549038783,-652.9,0.00020253,2]
[349983554,1737549038792,-769.05,0.00020253,2]
[349983555,1737549038801,-555.35,0.00020253,2]
[349983556,1737549038811,-1066.49,0.00020253,2]
[349983557,1737549038820,-795.04,0.00020253,2]
[349983558,1737549038829,-2707.27,0.00020253,2]
[349983559,1737549038838,-500.0,0.00020253,2]
[349983565,1737549039029,-500.0,0.00020253,2]
[349983567,1737549039039,-1689.92,0.00020253,2]
[349983569,1737549039049,-1448.38,0.00020253,2]
[349983571,1737549039060,-500.0,0.00020253,2]
[349983573,1737549039072,-889.69,0.00020253,2]
[349983575,1737549039082,-682.43,0.00020253,2]
[349983577,1737549039091,-977.14,0.00020253,2]
[349983579,1737549039100,-500.0,0.00020253,2]
[349983581,1737549039112,-775.54,0.00020253,2]
[349983583,1737549039121,-574.34,0.00020253,2]
[349983585,1737549039130,-1681.08,0.00020253,2]
[349983587,1737549039139,-550.22,0.00020253,2]
[349983589,1737549039150,-431.97569262,0.00020253,2]
[349983591,1737549039162,-818.40796481,0.00020253,2]
[349983593,1737549039173,-580.86634257,0.00020253,2]
[349983595,1737549039183,-1003.72,0.00020253,2]
[349983596,1737549039192,-500.0,0.00020253,2]
[349983597,1737549039201,-1016.3,0.00020253,2]
[349983598,1737549039210,-1242.63,0.00020253,2]
[349983599,1737549039220,-637.13,0.00020253,2]
[349983600,1737549039233,-895.54,0.00020253,2]
[349983601,1737549039242,-500.0,0.00020253,2]
[349983602,1737549039252,-500.0,0.00020253,2]
[349983603,1737549039262,-500.0,0.00020253,2]
[349983604,1737549039271,-3934.33808615,0.00020253,2]
[349983605,1737549039295,-422.37191385,0.00020253,2]
[349983606,1737549039306,-2686.25,0.00020253,2]
[349983607,1737549039315,-2195.16,0.00020253,2]
[349983608,1737549039324,-500.0,0.00020253,2]
[349983609,1737549039332,-500.0,0.00020253,2]
[349983610,1737549039341,-919.29,0.00020253,2]
[349983611,1737549039351,-1514.78,0.00020253,2]
[349983612,1737549039361,-500.0,0.00020253,2]
[349983613,1737549039370,-2829.02,0.00020253,2]
[349983614,1737549039379,-500.0,0.00020253,2]
[349983615,1737549039388,-500.0,0.00020253,2]
[349983616,1737549039397,-840.97,0.00020253,2]
[349983617,1737549039406,-500.0,0.00020253,2]
[349983618,1737549039415,-500.0,0.00020253,2]
[349983619,1737549039426,-1467.47,0.00020253,2]
[349983620,1737549039436,-974.6,0.00020253,2]
[349983621,1737549039446,-1423.79,0.00020253,2]
[349983622,1737549039456,-500.0,0.00020253,2]
[349983623,1737549039466,-1034.24,0.00020253,2]
[349983624,1737549039476,-1012.59,0.00020253,2]
[349983625,1737549039485,-918.95,0.00020253,2]
[349983626,1737549039495,-500.0,0.00020253,2]
[349983627,1737549039506,-880.71,0.00020253,2]
[349983628,1737549039517,-500.0,0.00020253,2]
[349983629,1737549039528,-556.06,0.00020253,2]
[349983630,1737549039538,-3001.3,0.00020253,2]
[349983631,1737549039547,-500.0,0.00020253,2]
[349983632,1737549039557,-500.0,0.00020253,2]
[349983633,1737549039566,-1480.58,0.00020253,2]